{"text_format":"1","workbook":"xlsx","n_sheets":2,"sheets":["送り先情報","商品情報"],"not_rendered":{"charts":0,"images":0,"macros":1,"external_links":0,"defined_names":0,"comments":0,"pivot_tables":0},"unopened":[],"bounds":{"document_bytes":16777216,"sheet_cells":100000,"rows_first":2000,"rows_last":500,"rows_between":2000,"halvings":0,"cell_chars":16384,"cell_head_chars":4096},"cells_cut":0,"cells_raw":0,"read":"whole","date_system":"1900"}

{"sheet":"送り先情報","index":0,"n_rows":215,"n_cols":26,"rows_kept":215,"cut":false,"hidden":false,"merged":[[1,20,1,22],[1,23,1,25],[1,0,1,2],[1,12,1,13],[1,14,1,16],[1,17,1,19],[1,3,1,11]]}
["2025/03/05 版",null,null,"佐川用にお届け先名＋お届け先住所の合計が80文字以下のチェックをします。文字の全角化も併せて行います。"]
["依頼部署",null,null,"送り先情報",null,null,null,null,null,null,null,null,"日時指定",null,"商品1",null,null,"商品2",null,null,"商品3",null,null,"商品4"]
["ユーザーコード","ユーザー名(部署)","依頼者","郵便番号","電話番号","お届け先名1","お届け先名2","お届け先住所1","お届け先住所2","お届け先住所3","ご担当者","文字数計","日付","AM/PM","No.","商品名","発送数量","No.","商品名","発送数量","No.","商品名","発送数量","No.","商品名","発送数量"]
[null,null,null,null,null,null,null,null,null,null,null,{"$f":"LEN(F4)+LEN(G4)+LEN(H4)+LEN(I4)+LEN(J4)","v":0}]
[null,null,null,null,null,null,null,null,null,null,null,{"$f":"LEN(F5)+LEN(G5)+LEN(H5)+LEN(I5)+LEN(J5)","v":0}]
[null,null,null,null,null,null,null,null,null,null,null,{"$f":"LEN(F6)+LEN(G6)+LEN(H6)+LEN(I6)+LEN(J6)","v":0}]
[null,null,null,null,null,null,null,null,null,null,null,{"$f":"LEN(F7)+LEN(G7)+LEN(H7)+LEN(I7)+LEN(J7)","v":0}]
[null,null,null,null,null,null,null,null,null,null,null,{"$f":"LEN(F8)+LEN(G8)+LEN(H8)+LEN(I8)+LEN(J8)","v":0}]
[null,null,null,null,null,null,null,null,null,null,null,{"$f":"LEN(F9)+LEN(G9)+LEN(H9)+LEN(I9)+LEN(J9)","v":0}]
[null,null,null,null,null,null,null,null,null,null,null,{"$f":"LEN(F10)+LEN(G10)+LEN(H10)+LEN(I10)+LEN(J10)","v":0}]
[null,null,null,null,null,null,null,null,null,null,null,{"$f":"LEN(F11)+LEN(G11)+LEN(H11)+LEN(I11)+LEN(J11)","v":0}]
[null,null,null,null,null,null,null,null,null,null,null,{"$f":"LEN(F12)+LEN(G12)+LEN(H12)+LEN(I12)+LEN(J12)","v":0}]
[null,null,null,null,null,null,null,null,null,null,null,{"$f":"LEN(F13)+LEN(G13)+LEN(H13)+LEN(I13)+LEN(J13)","v":0}]
[null,null,null,null,null,null,null,null,null,null,null,{"$f":"LEN(F14)+LEN(G14)+LEN(H14)+LEN(I14)+LEN(J14)","v":0}]
[null,null,null,null,null,null,null,null,null,null,null,{"$f":"LEN(F15)+LEN(G15)+LEN(H15)+LEN(I15)+LEN(J15)","v":0}]
[null,null,null,null,null,null,null,null,null,null,null,{"$f":"LEN(F16)+LEN(G16)+LEN(H16)+LEN(I16)+LEN(J16)","v":0}]
[null,null,null,null,null,null,null,null,null,null,null,{"$f":"LEN(F17)+LEN(G17)+LEN(H17)+LEN(I17)+LEN(J17)","v":0}]
[null,null,null,null,null,null,null,null,null,null,null,{"$f":"LEN(F18)+LEN(G18)+LEN(H18)+LEN(I18)+LEN(J18)","v":0}]
[null,null,null,null,null,null,null,null,null,null,null,{"$f":"LEN(F19)+LEN(G19)+LEN(H19)+LEN(I19)+LEN(J19)","v":0}]
[null,null,null,null,null,null,null,null,null,null,null,{"$f":"LEN(F20)+LEN(G20)+LEN(H20)+LEN(I20)+LEN(J20)","v":0}]
[null,null,null,null,null,null,null,null,null,null,null,{"$f":"LEN(F21)+LEN(G21)+LEN(H21)+LEN(I21)+LEN(J21)","v":0}]
[null,null,null,null,null,null,null,null,null,null,null,{"$f":"LEN(F22)+LEN(G22)+LEN(H22)+LEN(I22)+LEN(J22)","v":0}]
[null,null,null,null,null,null,null,null,null,null,null,{"$f":"LEN(F23)+LEN(G23)+LEN(H23)+LEN(I23)+LEN(J23)","v":0}]
[null,null,null,null,null,null,null,null,null,null,null,{"$f":"LEN(F24)+LEN(G24)+LEN(H24)+LEN(I24)+LEN(J24)","v":0}]
[null,null,null,null,null,null,null,null,null,null,null,{"$f":"LEN(F25)+LEN(G25)+LEN(H25)+LEN(I25)+LEN(J25)","v":0}]
[null,null,null,null,null,null,null,null,null,null,null,{"$f":"LEN(F26)+LEN(G26)+LEN(H26)+LEN(I26)+LEN(J26)","v":0}]
[null,null,null,null,null,null,null,null,null,null,null,{"$f":"LEN(F27)+LEN(G27)+LEN(H27)+LEN(I27)+LEN(J27)","v":0}]
[null,null,null,null,null,null,null,null,null,null,null,{"$f":"LEN(F28)+LEN(G28)+LEN(H28)+LEN(I28)+LEN(J28)","v":0}]
[null,null,null,null,null,null,null,null,null,null,null,{"$f":"LEN(F29)+LEN(G29)+LEN(H29)+LEN(I29)+LEN(J29)","v":0}]
[null,null,null,null,null,null,null,null,null,null,null,{"$f":"LEN(F30)+LEN(G30)+LEN(H30)+LEN(I30)+LEN(J30)","v":0}]
[null,null,null,null,null,null,null,null,null,null,null,{"$f":"LEN(F31)+LEN(G31)+LEN(H31)+LEN(I31)+LEN(J31)","v":0}]
[null,null,null,null,null,null,null,null,null,null,null,{"$f":"LEN(F32)+LEN(G32)+LEN(H32)+LEN(I32)+LEN(J32)","v":0}]
[null,null,null,null,null,null,null,null,null,null,null,{"$f":"LEN(F33)+LEN(G33)+LEN(H33)+LEN(I33)+LEN(J33)","v":0}]
[null,null,null,null,null,null,null,null,null,null,null,{"$f":"LEN(F34)+LEN(G34)+LEN(H34)+LEN(I34)+LEN(J34)","v":0}]
[null,null,null,null,null,null,null,null,null,null,null,{"$f":"LEN(F35)+LEN(G35)+LEN(H35)+LEN(I35)+LEN(J35)","v":0}]
[null,null,null,null,null,null,null,null,null,null,null,{"$f":"LEN(F36)+LEN(G36)+LEN(H36)+LEN(I36)+LEN(J36)","v":0}]
[null,null,null,null,null,null,null,null,null,null,null,{"$f":"LEN(F37)+LEN(G37)+LEN(H37)+LEN(I37)+LEN(J37)","v":0}]
[null,null,null,null,null,null,null,null,null,null,null,{"$f":"LEN(F38)+LEN(G38)+LEN(H38)+LEN(I38)+LEN(J38)","v":0}]
[null,null,null,null,null,null,null,null,null,null,null,{"$f":"LEN(F39)+LEN(G39)+LEN(H39)+LEN(I39)+LEN(J39)","v":0}]
[null,null,null,null,null,null,null,null,null,null,null,{"$f":"LEN(F40)+LEN(G40)+LEN(H40)+LEN(I40)+LEN(J40)","v":0}]
[null,null,null,null,null,null,null,null,null,null,null,{"$f":"LEN(F41)+LEN(G41)+LEN(H41)+LEN(I41)+LEN(J41)","v":0}]
[null,null,null,null,null,null,null,null,null,null,null,{"$f":"LEN(F42)+LEN(G42)+LEN(H42)+LEN(I42)+LEN(J42)","v":0}]
[null,null,null,null,null,null,null,null,null,null,null,{"$f":"LEN(F43)+LEN(G43)+LEN(H43)+LEN(I43)+LEN(J43)","v":0}]
[null,null,null,null,null,null,null,null,null,null,null,{"$f":"LEN(F44)+LEN(G44)+LEN(H44)+LEN(I44)+LEN(J44)","v":0}]
[null,null,null,null,null,null,null,null,null,null,null,{"$f":"LEN(F45)+LEN(G45)+LEN(H45)+LEN(I45)+LEN(J45)","v":0}]
[null,null,null,null,null,null,null,null,null,null,null,{"$f":"LEN(F46)+LEN(G46)+LEN(H46)+LEN(I46)+LEN(J46)","v":0}]
[null,null,null,null,null,null,null,null,null,null,null,{"$f":"LEN(F47)+LEN(G47)+LEN(H47)+LEN(I47)+LEN(J47)","v":0}]
[null,null,null,null,null,null,null,null,null,null,null,{"$f":"LEN(F48)+LEN(G48)+LEN(H48)+LEN(I48)+LEN(J48)","v":0}]
[null,null,null,null,null,null,null,null,null,null,null,{"$f":"LEN(F49)+LEN(G49)+LEN(H49)+LEN(I49)+LEN(J49)","v":0}]
[null,null,null,null,null,null,null,null,null,null,null,{"$f":"LEN(F50)+LEN(G50)+LEN(H50)+LEN(I50)+LEN(J50)","v":0}]
[null,null,null,null,null,null,null,null,null,null,null,{"$f":"LEN(F51)+LEN(G51)+LEN(H51)+LEN(I51)+LEN(J51)","v":0}]
[null,null,null,null,null,null,null,null,null,null,null,{"$f":"LEN(F52)+LEN(G52)+LEN(H52)+LEN(I52)+LEN(J52)","v":0}]
[null,null,null,null,null,null,null,null,null,null,null,{"$f":"LEN(F53)+LEN(G53)+LEN(H53)+LEN(I53)+LEN(J53)","v":0}]
[null,null,null,null,null,null,null,null,null,null,null,{"$f":"LEN(F54)+LEN(G54)+LEN(H54)+LEN(I54)+LEN(J54)","v":0}]
[null,null,null,null,null,null,null,null,null,null,null,{"$f":"LEN(F55)+LEN(G55)+LEN(H55)+LEN(I55)+LEN(J55)","v":0}]
[null,null,null,null,null,null,null,null,null,null,null,{"$f":"LEN(F56)+LEN(G56)+LEN(H56)+LEN(I56)+LEN(J56)","v":0}]
[null,null,null,null,null,null,null,null,null,null,null,{"$f":"LEN(F57)+LEN(G57)+LEN(H57)+LEN(I57)+LEN(J57)","v":0}]
[null,null,null,null,null,null,null,null,null,null,null,{"$f":"LEN(F58)+LEN(G58)+LEN(H58)+LEN(I58)+LEN(J58)","v":0}]
[null,null,null,null,null,null,null,null,null,null,null,{"$f":"LEN(F59)+LEN(G59)+LEN(H59)+LEN(I59)+LEN(J59)","v":0}]
[null,null,null,null,null,null,null,null,null,null,null,{"$f":"LEN(F60)+LEN(G60)+LEN(H60)+LEN(I60)+LEN(J60)","v":0}]
[null,null,null,null,null,null,null,null,null,null,null,{"$f":"LEN(F61)+LEN(G61)+LEN(H61)+LEN(I61)+LEN(J61)","v":0}]
[null,null,null,null,null,null,null,null,null,null,null,{"$f":"LEN(F62)+LEN(G62)+LEN(H62)+LEN(I62)+LEN(J62)","v":0}]
[null,null,null,null,null,null,null,null,null,null,null,{"$f":"LEN(F63)+LEN(G63)+LEN(H63)+LEN(I63)+LEN(J63)","v":0}]
[null,null,null,null,null,null,null,null,null,null,null,{"$f":"LEN(F64)+LEN(G64)+LEN(H64)+LEN(I64)+LEN(J64)","v":0}]
[null,null,null,null,null,null,null,null,null,null,null,{"$f":"LEN(F65)+LEN(G65)+LEN(H65)+LEN(I65)+LEN(J65)","v":0}]
[null,null,null,null,null,null,null,null,null,null,null,{"$f":"LEN(F66)+LEN(G66)+LEN(H66)+LEN(I66)+LEN(J66)","v":0}]
[null,null,null,null,null,null,null,null,null,null,null,{"$f":"LEN(F67)+LEN(G67)+LEN(H67)+LEN(I67)+LEN(J67)","v":0}]
[null,null,null,null,null,null,null,null,null,null,null,{"$f":"LEN(F68)+LEN(G68)+LEN(H68)+LEN(I68)+LEN(J68)","v":0}]
[null,null,null,null,null,null,null,null,null,null,null,{"$f":"LEN(F69)+LEN(G69)+LEN(H69)+LEN(I69)+LEN(J69)","v":0}]
[null,null,null,null,null,null,null,null,null,null,null,{"$f":"LEN(F70)+LEN(G70)+LEN(H70)+LEN(I70)+LEN(J70)","v":0}]
[null,null,null,null,null,null,null,null,null,null,null,{"$f":"LEN(F71)+LEN(G71)+LEN(H71)+LEN(I71)+LEN(J71)","v":0}]
[null,null,null,null,null,null,null,null,null,null,null,{"$f":"LEN(F72)+LEN(G72)+LEN(H72)+LEN(I72)+LEN(J72)","v":0}]
[null,null,null,null,null,null,null,null,null,null,null,{"$f":"LEN(F73)+LEN(G73)+LEN(H73)+LEN(I73)+LEN(J73)","v":0}]
[null,null,null,null,null,null,null,null,null,null,null,{"$f":"LEN(F74)+LEN(G74)+LEN(H74)+LEN(I74)+LEN(J74)","v":0}]
[null,null,null,null,null,null,null,null,null,null,null,{"$f":"LEN(F75)+LEN(G75)+LEN(H75)+LEN(I75)+LEN(J75)","v":0}]
[null,null,null,null,null,null,null,null,null,null,null,{"$f":"LEN(F76)+LEN(G76)+LEN(H76)+LEN(I76)+LEN(J76)","v":0}]
[null,null,null,null,null,null,null,null,null,null,null,{"$f":"LEN(F77)+LEN(G77)+LEN(H77)+LEN(I77)+LEN(J77)","v":0}]
[null,null,null,null,null,null,null,null,null,null,null,{"$f":"LEN(F78)+LEN(G78)+LEN(H78)+LEN(I78)+LEN(J78)","v":0}]
[null,null,null,null,null,null,null,null,null,null,null,{"$f":"LEN(F79)+LEN(G79)+LEN(H79)+LEN(I79)+LEN(J79)","v":0}]
[null,null,null,null,null,null,null,null,null,null,null,{"$f":"LEN(F80)+LEN(G80)+LEN(H80)+LEN(I80)+LEN(J80)","v":0}]
[null,null,null,null,null,null,null,null,null,null,null,{"$f":"LEN(F81)+LEN(G81)+LEN(H81)+LEN(I81)+LEN(J81)","v":0}]
[null,null,null,null,null,null,null,null,null,null,null,{"$f":"LEN(F82)+LEN(G82)+LEN(H82)+LEN(I82)+LEN(J82)","v":0}]
[null,null,null,null,null,null,null,null,null,null,null,{"$f":"LEN(F83)+LEN(G83)+LEN(H83)+LEN(I83)+LEN(J83)","v":0}]
[null,null,null,null,null,null,null,null,null,null,null,{"$f":"LEN(F84)+LEN(G84)+LEN(H84)+LEN(I84)+LEN(J84)","v":0}]
[null,null,null,null,null,null,null,null,null,null,null,{"$f":"LEN(F85)+LEN(G85)+LEN(H85)+LEN(I85)+LEN(J85)","v":0}]
[null,null,null,null,null,null,null,null,null,null,null,{"$f":"LEN(F86)+LEN(G86)+LEN(H86)+LEN(I86)+LEN(J86)","v":0}]
[null,null,null,null,null,null,null,null,null,null,null,{"$f":"LEN(F87)+LEN(G87)+LEN(H87)+LEN(I87)+LEN(J87)","v":0}]
[null,null,null,null,null,null,null,null,null,null,null,{"$f":"LEN(F88)+LEN(G88)+LEN(H88)+LEN(I88)+LEN(J88)","v":0}]
[null,null,null,null,null,null,null,null,null,null,null,{"$f":"LEN(F89)+LEN(G89)+LEN(H89)+LEN(I89)+LEN(J89)","v":0}]
[null,null,null,null,null,null,null,null,null,null,null,{"$f":"LEN(F90)+LEN(G90)+LEN(H90)+LEN(I90)+LEN(J90)","v":0}]
[null,null,null,null,null,null,null,null,null,null,null,{"$f":"LEN(F91)+LEN(G91)+LEN(H91)+LEN(I91)+LEN(J91)","v":0}]
[null,null,null,null,null,null,null,null,null,null,null,{"$f":"LEN(F92)+LEN(G92)+LEN(H92)+LEN(I92)+LEN(J92)","v":0}]
[null,null,null,null,null,null,null,null,null,null,null,{"$f":"LEN(F93)+LEN(G93)+LEN(H93)+LEN(I93)+LEN(J93)","v":0}]
[null,null,null,null,null,null,null,null,null,null,null,{"$f":"LEN(F94)+LEN(G94)+LEN(H94)+LEN(I94)+LEN(J94)","v":0}]
[null,null,null,null,null,null,null,null,null,null,null,{"$f":"LEN(F95)+LEN(G95)+LEN(H95)+LEN(I95)+LEN(J95)","v":0}]
[null,null,null,null,null,null,null,null,null,null,null,{"$f":"LEN(F96)+LEN(G96)+LEN(H96)+LEN(I96)+LEN(J96)","v":0}]
[null,null,null,null,null,null,null,null,null,null,null,{"$f":"LEN(F97)+LEN(G97)+LEN(H97)+LEN(I97)+LEN(J97)","v":0}]
[null,null,null,null,null,null,null,null,null,null,null,{"$f":"LEN(F98)+LEN(G98)+LEN(H98)+LEN(I98)+LEN(J98)","v":0}]
[null,null,null,null,null,null,null,null,null,null,null,{"$f":"LEN(F99)+LEN(G99)+LEN(H99)+LEN(I99)+LEN(J99)","v":0}]
[null,null,null,null,null,null,null,null,null,null,null,{"$f":"LEN(F100)+LEN(G100)+LEN(H100)+LEN(I100)+LEN(J100)","v":0}]
[null,null,null,null,null,null,null,null,null,null,null,{"$f":"LEN(F101)+LEN(G101)+LEN(H101)+LEN(I101)+LEN(J101)","v":0}]
[null,null,null,null,null,null,null,null,null,null,null,{"$f":"LEN(F102)+LEN(G102)+LEN(H102)+LEN(I102)+LEN(J102)","v":0}]
[null,null,null,null,null,null,null,null,null,null,null,{"$f":"LEN(F103)+LEN(G103)+LEN(H103)+LEN(I103)+LEN(J103)","v":0}]
[null,null,null,null,null,null,null,null,null,null,null,{"$f":"LEN(F104)+LEN(G104)+LEN(H104)+LEN(I104)+LEN(J104)","v":0}]
[null,null,null,null,null,null,null,null,null,null,null,{"$f":"LEN(F105)+LEN(G105)+LEN(H105)+LEN(I105)+LEN(J105)","v":0}]
[null,null,null,null,null,null,null,null,null,null,null,{"$f":"LEN(F106)+LEN(G106)+LEN(H106)+LEN(I106)+LEN(J106)","v":0}]
[null,null,null,null,null,null,null,null,null,null,null,{"$f":"LEN(F107)+LEN(G107)+LEN(H107)+LEN(I107)+LEN(J107)","v":0}]
[null,null,null,null,null,null,null,null,null,null,null,{"$f":"LEN(F108)+LEN(G108)+LEN(H108)+LEN(I108)+LEN(J108)","v":0}]
[null,null,null,null,null,null,null,null,null,null,null,{"$f":"LEN(F109)+LEN(G109)+LEN(H109)+LEN(I109)+LEN(J109)","v":0}]
[null,null,null,null,null,null,null,null,null,null,null,{"$f":"LEN(F110)+LEN(G110)+LEN(H110)+LEN(I110)+LEN(J110)","v":0}]
[null,null,null,null,null,null,null,null,null,null,null,{"$f":"LEN(F111)+LEN(G111)+LEN(H111)+LEN(I111)+LEN(J111)","v":0}]
[null,null,null,null,null,null,null,null,null,null,null,{"$f":"LEN(F112)+LEN(G112)+LEN(H112)+LEN(I112)+LEN(J112)","v":0}]
[null,null,null,null,null,null,null,null,null,null,null,{"$f":"LEN(F113)+LEN(G113)+LEN(H113)+LEN(I113)+LEN(J113)","v":0}]
[null,null,null,null,null,null,null,null,null,null,null,{"$f":"LEN(F114)+LEN(G114)+LEN(H114)+LEN(I114)+LEN(J114)","v":0}]
[null,null,null,null,null,null,null,null,null,null,null,{"$f":"LEN(F115)+LEN(G115)+LEN(H115)+LEN(I115)+LEN(J115)","v":0}]
[null,null,null,null,null,null,null,null,null,null,null,{"$f":"LEN(F116)+LEN(G116)+LEN(H116)+LEN(I116)+LEN(J116)","v":0}]
[null,null,null,null,null,null,null,null,null,null,null,{"$f":"LEN(F117)+LEN(G117)+LEN(H117)+LEN(I117)+LEN(J117)","v":0}]
[null,null,null,null,null,null,null,null,null,null,null,{"$f":"LEN(F118)+LEN(G118)+LEN(H118)+LEN(I118)+LEN(J118)","v":0}]
[null,null,null,null,null,null,null,null,null,null,null,{"$f":"LEN(F119)+LEN(G119)+LEN(H119)+LEN(I119)+LEN(J119)","v":0}]
[null,null,null,null,null,null,null,null,null,null,null,{"$f":"LEN(F120)+LEN(G120)+LEN(H120)+LEN(I120)+LEN(J120)","v":0}]
[null,null,null,null,null,null,null,null,null,null,null,{"$f":"LEN(F121)+LEN(G121)+LEN(H121)+LEN(I121)+LEN(J121)","v":0}]
[null,null,null,null,null,null,null,null,null,null,null,{"$f":"LEN(F122)+LEN(G122)+LEN(H122)+LEN(I122)+LEN(J122)","v":0}]
[null,null,null,null,null,null,null,null,null,null,null,{"$f":"LEN(F123)+LEN(G123)+LEN(H123)+LEN(I123)+LEN(J123)","v":0}]
[null,null,null,null,null,null,null,null,null,null,null,{"$f":"LEN(F124)+LEN(G124)+LEN(H124)+LEN(I124)+LEN(J124)","v":0}]
[null,null,null,null,null,null,null,null,null,null,null,{"$f":"LEN(F125)+LEN(G125)+LEN(H125)+LEN(I125)+LEN(J125)","v":0}]
[null,null,null,null,null,null,null,null,null,null,null,{"$f":"LEN(F126)+LEN(G126)+LEN(H126)+LEN(I126)+LEN(J126)","v":0}]
[null,null,null,null,null,null,null,null,null,null,null,{"$f":"LEN(F127)+LEN(G127)+LEN(H127)+LEN(I127)+LEN(J127)","v":0}]
[null,null,null,null,null,null,null,null,null,null,null,{"$f":"LEN(F128)+LEN(G128)+LEN(H128)+LEN(I128)+LEN(J128)","v":0}]
[null,null,null,null,null,null,null,null,null,null,null,{"$f":"LEN(F129)+LEN(G129)+LEN(H129)+LEN(I129)+LEN(J129)","v":0}]
[null,null,null,null,null,null,null,null,null,null,null,{"$f":"LEN(F130)+LEN(G130)+LEN(H130)+LEN(I130)+LEN(J130)","v":0}]
[null,null,null,null,null,null,null,null,null,null,null,{"$f":"LEN(F131)+LEN(G131)+LEN(H131)+LEN(I131)+LEN(J131)","v":0}]
[null,null,null,null,null,null,null,null,null,null,null,{"$f":"LEN(F132)+LEN(G132)+LEN(H132)+LEN(I132)+LEN(J132)","v":0}]
[null,null,null,null,null,null,null,null,null,null,null,{"$f":"LEN(F133)+LEN(G133)+LEN(H133)+LEN(I133)+LEN(J133)","v":0}]
[null,null,null,null,null,null,null,null,null,null,null,{"$f":"LEN(F134)+LEN(G134)+LEN(H134)+LEN(I134)+LEN(J134)","v":0}]
[null,null,null,null,null,null,null,null,null,null,null,{"$f":"LEN(F135)+LEN(G135)+LEN(H135)+LEN(I135)+LEN(J135)","v":0}]
[null,null,null,null,null,null,null,null,null,null,null,{"$f":"LEN(F136)+LEN(G136)+LEN(H136)+LEN(I136)+LEN(J136)","v":0}]
[null,null,null,null,null,null,null,null,null,null,null,{"$f":"LEN(F137)+LEN(G137)+LEN(H137)+LEN(I137)+LEN(J137)","v":0}]
[null,null,null,null,null,null,null,null,null,null,null,{"$f":"LEN(F138)+LEN(G138)+LEN(H138)+LEN(I138)+LEN(J138)","v":0}]
[null,null,null,null,null,null,null,null,null,null,null,{"$f":"LEN(F139)+LEN(G139)+LEN(H139)+LEN(I139)+LEN(J139)","v":0}]
[null,null,null,null,null,null,null,null,null,null,null,{"$f":"LEN(F140)+LEN(G140)+LEN(H140)+LEN(I140)+LEN(J140)","v":0}]
[null,null,null,null,null,null,null,null,null,null,null,{"$f":"LEN(F141)+LEN(G141)+LEN(H141)+LEN(I141)+LEN(J141)","v":0}]
[null,null,null,null,null,null,null,null,null,null,null,{"$f":"LEN(F142)+LEN(G142)+LEN(H142)+LEN(I142)+LEN(J142)","v":0}]
[null,null,null,null,null,null,null,null,null,null,null,{"$f":"LEN(F143)+LEN(G143)+LEN(H143)+LEN(I143)+LEN(J143)","v":0}]
[null,null,null,null,null,null,null,null,null,null,null,{"$f":"LEN(F144)+LEN(G144)+LEN(H144)+LEN(I144)+LEN(J144)","v":0}]
[null,null,null,null,null,null,null,null,null,null,null,{"$f":"LEN(F145)+LEN(G145)+LEN(H145)+LEN(I145)+LEN(J145)","v":0}]
[null,null,null,null,null,null,null,null,null,null,null,{"$f":"LEN(F146)+LEN(G146)+LEN(H146)+LEN(I146)+LEN(J146)","v":0}]
[null,null,null,null,null,null,null,null,null,null,null,{"$f":"LEN(F147)+LEN(G147)+LEN(H147)+LEN(I147)+LEN(J147)","v":0}]
[null,null,null,null,null,null,null,null,null,null,null,{"$f":"LEN(F148)+LEN(G148)+LEN(H148)+LEN(I148)+LEN(J148)","v":0}]
[null,null,null,null,null,null,null,null,null,null,null,{"$f":"LEN(F149)+LEN(G149)+LEN(H149)+LEN(I149)+LEN(J149)","v":0}]
[null,null,null,null,null,null,null,null,null,null,null,{"$f":"LEN(F150)+LEN(G150)+LEN(H150)+LEN(I150)+LEN(J150)","v":0}]
[null,null,null,null,null,null,null,null,null,null,null,{"$f":"LEN(F151)+LEN(G151)+LEN(H151)+LEN(I151)+LEN(J151)","v":0}]
[null,null,null,null,null,null,null,null,null,null,null,{"$f":"LEN(F152)+LEN(G152)+LEN(H152)+LEN(I152)+LEN(J152)","v":0}]
[null,null,null,null,null,null,null,null,null,null,null,{"$f":"LEN(F153)+LEN(G153)+LEN(H153)+LEN(I153)+LEN(J153)","v":0}]
[null,null,null,null,null,null,null,null,null,null,null,{"$f":"LEN(F154)+LEN(G154)+LEN(H154)+LEN(I154)+LEN(J154)","v":0}]
[null,null,null,null,null,null,null,null,null,null,null,{"$f":"LEN(F155)+LEN(G155)+LEN(H155)+LEN(I155)+LEN(J155)","v":0}]
[null,null,null,null,null,null,null,null,null,null,null,{"$f":"LEN(F156)+LEN(G156)+LEN(H156)+LEN(I156)+LEN(J156)","v":0}]
[null,null,null,null,null,null,null,null,null,null,null,{"$f":"LEN(F157)+LEN(G157)+LEN(H157)+LEN(I157)+LEN(J157)","v":0}]
[null,null,null,null,null,null,null,null,null,null,null,{"$f":"LEN(F158)+LEN(G158)+LEN(H158)+LEN(I158)+LEN(J158)","v":0}]
[null,null,null,null,null,null,null,null,null,null,null,{"$f":"LEN(F159)+LEN(G159)+LEN(H159)+LEN(I159)+LEN(J159)","v":0}]
[null,null,null,null,null,null,null,null,null,null,null,{"$f":"LEN(F160)+LEN(G160)+LEN(H160)+LEN(I160)+LEN(J160)","v":0}]
[null,null,null,null,null,null,null,null,null,null,null,{"$f":"LEN(F161)+LEN(G161)+LEN(H161)+LEN(I161)+LEN(J161)","v":0}]
[null,null,null,null,null,null,null,null,null,null,null,{"$f":"LEN(F162)+LEN(G162)+LEN(H162)+LEN(I162)+LEN(J162)","v":0}]
[null,null,null,null,null,null,null,null,null,null,null,{"$f":"LEN(F163)+LEN(G163)+LEN(H163)+LEN(I163)+LEN(J163)","v":0}]
[null,null,null,null,null,null,null,null,null,null,null,{"$f":"LEN(F164)+LEN(G164)+LEN(H164)+LEN(I164)+LEN(J164)","v":0}]
[null,null,null,null,null,null,null,null,null,null,null,{"$f":"LEN(F165)+LEN(G165)+LEN(H165)+LEN(I165)+LEN(J165)","v":0}]
[null,null,null,null,null,null,null,null,null,null,null,{"$f":"LEN(F166)+LEN(G166)+LEN(H166)+LEN(I166)+LEN(J166)","v":0}]
[null,null,null,null,null,null,null,null,null,null,null,{"$f":"LEN(F167)+LEN(G167)+LEN(H167)+LEN(I167)+LEN(J167)","v":0}]
[null,null,null,null,null,null,null,null,null,null,null,{"$f":"LEN(F168)+LEN(G168)+LEN(H168)+LEN(I168)+LEN(J168)","v":0}]
[null,null,null,null,null,null,null,null,null,null,null,{"$f":"LEN(F169)+LEN(G169)+LEN(H169)+LEN(I169)+LEN(J169)","v":0}]
[null,null,null,null,null,null,null,null,null,null,null,{"$f":"LEN(F170)+LEN(G170)+LEN(H170)+LEN(I170)+LEN(J170)","v":0}]
[null,null,null,null,null,null,null,null,null,null,null,{"$f":"LEN(F171)+LEN(G171)+LEN(H171)+LEN(I171)+LEN(J171)","v":0}]
[null,null,null,null,null,null,null,null,null,null,null,{"$f":"LEN(F172)+LEN(G172)+LEN(H172)+LEN(I172)+LEN(J172)","v":0}]
[null,null,null,null,null,null,null,null,null,null,null,{"$f":"LEN(F173)+LEN(G173)+LEN(H173)+LEN(I173)+LEN(J173)","v":0}]
[null,null,null,null,null,null,null,null,null,null,null,{"$f":"LEN(F174)+LEN(G174)+LEN(H174)+LEN(I174)+LEN(J174)","v":0}]
[null,null,null,null,null,null,null,null,null,null,null,{"$f":"LEN(F175)+LEN(G175)+LEN(H175)+LEN(I175)+LEN(J175)","v":0}]
[null,null,null,null,null,null,null,null,null,null,null,{"$f":"LEN(F176)+LEN(G176)+LEN(H176)+LEN(I176)+LEN(J176)","v":0}]
[null,null,null,null,null,null,null,null,null,null,null,{"$f":"LEN(F177)+LEN(G177)+LEN(H177)+LEN(I177)+LEN(J177)","v":0}]
[null,null,null,null,null,null,null,null,null,null,null,{"$f":"LEN(F178)+LEN(G178)+LEN(H178)+LEN(I178)+LEN(J178)","v":0}]
[null,null,null,null,null,null,null,null,null,null,null,{"$f":"LEN(F179)+LEN(G179)+LEN(H179)+LEN(I179)+LEN(J179)","v":0}]
[null,null,null,null,null,null,null,null,null,null,null,{"$f":"LEN(F180)+LEN(G180)+LEN(H180)+LEN(I180)+LEN(J180)","v":0}]
[null,null,null,null,null,null,null,null,null,null,null,{"$f":"LEN(F181)+LEN(G181)+LEN(H181)+LEN(I181)+LEN(J181)","v":0}]
[null,null,null,null,null,null,null,null,null,null,null,{"$f":"LEN(F182)+LEN(G182)+LEN(H182)+LEN(I182)+LEN(J182)","v":0}]
[null,null,null,null,null,null,null,null,null,null,null,{"$f":"LEN(F183)+LEN(G183)+LEN(H183)+LEN(I183)+LEN(J183)","v":0}]
[null,null,null,null,null,null,null,null,null,null,null,{"$f":"LEN(F184)+LEN(G184)+LEN(H184)+LEN(I184)+LEN(J184)","v":0}]
[null,null,null,null,null,null,null,null,null,null,null,{"$f":"LEN(F185)+LEN(G185)+LEN(H185)+LEN(I185)+LEN(J185)","v":0}]
[null,null,null,null,null,null,null,null,null,null,null,{"$f":"LEN(F186)+LEN(G186)+LEN(H186)+LEN(I186)+LEN(J186)","v":0}]
[null,null,null,null,null,null,null,null,null,null,null,{"$f":"LEN(F187)+LEN(G187)+LEN(H187)+LEN(I187)+LEN(J187)","v":0}]
[null,null,null,null,null,null,null,null,null,null,null,{"$f":"LEN(F188)+LEN(G188)+LEN(H188)+LEN(I188)+LEN(J188)","v":0}]
[null,null,null,null,null,null,null,null,null,null,null,{"$f":"LEN(F189)+LEN(G189)+LEN(H189)+LEN(I189)+LEN(J189)","v":0}]
[null,null,null,null,null,null,null,null,null,null,null,{"$f":"LEN(F190)+LEN(G190)+LEN(H190)+LEN(I190)+LEN(J190)","v":0}]
[null,null,null,null,null,null,null,null,null,null,null,{"$f":"LEN(F191)+LEN(G191)+LEN(H191)+LEN(I191)+LEN(J191)","v":0}]
[null,null,null,null,null,null,null,null,null,null,null,{"$f":"LEN(F192)+LEN(G192)+LEN(H192)+LEN(I192)+LEN(J192)","v":0}]
[null,null,null,null,null,null,null,null,null,null,null,{"$f":"LEN(F193)+LEN(G193)+LEN(H193)+LEN(I193)+LEN(J193)","v":0}]
[null,null,null,null,null,null,null,null,null,null,null,{"$f":"LEN(F194)+LEN(G194)+LEN(H194)+LEN(I194)+LEN(J194)","v":0}]
[null,null,null,null,null,null,null,null,null,null,null,{"$f":"LEN(F195)+LEN(G195)+LEN(H195)+LEN(I195)+LEN(J195)","v":0}]
[null,null,null,null,null,null,null,null,null,null,null,{"$f":"LEN(F196)+LEN(G196)+LEN(H196)+LEN(I196)+LEN(J196)","v":0}]
[null,null,null,null,null,null,null,null,null,null,null,{"$f":"LEN(F197)+LEN(G197)+LEN(H197)+LEN(I197)+LEN(J197)","v":0}]
[null,null,null,null,null,null,null,null,null,null,null,{"$f":"LEN(F198)+LEN(G198)+LEN(H198)+LEN(I198)+LEN(J198)","v":0}]
[null,null,null,null,null,null,null,null,null,null,null,{"$f":"LEN(F199)+LEN(G199)+LEN(H199)+LEN(I199)+LEN(J199)","v":0}]
[null,null,null,null,null,null,null,null,null,null,null,{"$f":"LEN(F200)+LEN(G200)+LEN(H200)+LEN(I200)+LEN(J200)","v":0}]
[null,null,null,null,null,null,null,null,null,null,null,{"$f":"LEN(F201)+LEN(G201)+LEN(H201)+LEN(I201)+LEN(J201)","v":0}]
[null,null,null,null,null,null,null,null,null,null,null,{"$f":"LEN(F202)+LEN(G202)+LEN(H202)+LEN(I202)+LEN(J202)","v":0}]
[null,null,null,null,null,null,null,null,null,null,null,{"$f":"LEN(F203)+LEN(G203)+LEN(H203)+LEN(I203)+LEN(J203)","v":0}]
[null,null,null,null,null,null,null,null,null,null,null,{"$f":"LEN(F204)+LEN(G204)+LEN(H204)+LEN(I204)+LEN(J204)","v":0}]
["発送先についてですが、"]
[]
["項目","文字数制限"]
["お届け先住所1","全角１６文字"]
["お届け先住所2","全角１６文字"]
["お届け先住所3","全角１６文字"]
["お届け先名1","全角１６文字"]
["お届け先名2","全角１６文字"]
[]
["住所+宛名＝合計80文字として、"]
["住所と宛名を同じと考えれば"]

{"sheet":"商品情報","index":1,"n_rows":3,"n_cols":11,"rows_kept":3,"cut":false,"hidden":false,"merged":[[1,2,1,5],[1,6,1,10],[1,0,1,1]]}
[]
["商品情報",null,"単品情報",null,null,null,"個装情報"]
["No.","名称","タテ(mm)","ヨコ(mm)","高さ/厚み(mm)","重量(g)","入数","タテ(mm)","ヨコ(mm)","高さ(mm)","重量(g)"]